lending/lending_fUSD_20250409
["ID","MTS","AMOUNT","RATE_DAILY","PERIOD"]
[357577846,1744195846469,-151.0,0.0003511,7]
[357577847,1744195846478,-151.0,0.0003511,7]
[357577848,1744195846488,-155.056702,0.0003511,7]
[357577849,1744195846499,-155.056702,0.0003511,7]
[357577850,1744195846509,-254.666663,0.0003511,7]
[357577851,1744195846519,-303.574274,0.0003511,7]
[357577852,1744195846529,-254.666663,0.0003511,7]
[357577853,1744195846540,-303.574274,0.0003511,7]
[357577854,1744195846549,-4026.909709,0.0003511,7]
[357577855,1744195846564,-4026.909709,0.0003511,7]
[357577856,1744195846574,-151.0,0.0003511,7]
[357577857,1744195846583,-423.772439,0.0003511,7]
[357577858,1744195846593,-151.0,0.0003511,7]
[357577859,1744195846605,-423.772439,0.0003511,7]
[357577860,1744195846615,-151.0,0.0003511,7]
[357577861,1744195846624,-209.240526,0.0003511,7]
[357577862,1744195846635,-209.240526,0.0003511,7]
[357577863,1744195846644,-151.0,0.0003511,7]
[357577864,1744195846653,-1500.0,0.00035471,5]
[357577865,1744195846663,-1500.0,0.00035471,5]
[357577866,1744195846674,-1500.0,0.00035471,5]
[357577867,1744195846683,-1500.0,0.00035471,5]
[357577868,1744195846693,-263.61,0.00035616,2]
[357577869,1744195846702,-162.28554912,0.00035616,5]
[357577870,1744195846712,-1761.65,0.00035671,120]
[357577871,1744195846721,-300.0,0.000359,13]
[357577872,1744195846731,-150.0,0.00035999,2]
[357577873,1744195846742,-150.0,0.00035999,2]
[357577874,1744195846752,-150.0,0.00035999,2]
[357577875,1744195846763,-150.0,0.00035999,2]
[357577876,1744195846773,-150.0,0.00035999,2]
[357577877,1744195846782,-56714.41093365,0.00036,2]
[357577878,1744195846792,-177.027,0.00036496,2]
[357577879,1744195846801,-167.82506,0.00036894,2]
[357577880,1744195846810,-263.61,0.00036986,2]
[357577881,1744195846820,-967.71379128,0.000372,103]
[357577882,1744195846830,-967.71379125,0.000372,103]
[357577883,1744195846839,-967.71379125,0.000372,103]
[357577884,1744195846848,-967.71379125,0.000372,103]
[357577885,1744195846858,-967.71379125,0.000372,103]
[357577886,1744195846867,-1072.12,0.00037225,2]
[357577887,1744195846877,-420.75639331,0.00037477,2]
[357577888,1744195846886,-157.86,0.00037863,2]
[357577889,1744195846896,-150.0,0.00037999,3]
[357577890,1744195846905,-728.58938707,0.00038,120]
[357577891,1744195846915,-248.77896662,0.00038,120]
[357577892,1744195846924,-248.26405605,0.00038233,2]
[357577893,1744195846934,-150.0,0.00038355,2]
[357577894,1744195846944,-263.61,0.00038356,2]
[357577895,1744195846954,-1415.66068331,0.00038356,15]
[357577896,1744195846964,-1415.66068331,0.00038356,15]
[357577897,1744195846974,-1415.66068331,0.00038356,15]
[357577898,1744195846984,-1415.66068331,0.00038356,15]
[357577899,1744195846993,-1415.66068331,0.00038356,15]
[357577900,1744195847003,-1415.66068331,0.00038356,15]
[357577901,1744195847013,-1415.66068331,0.00038356,15]
[357577902,1744195847023,-1415.66068331,0.00038356,15]
[357577903,1744195847032,-1415.66068331,0.00038356,15]
[357577904,1744195847041,-1415.66068331,0.00038356,15]
[357577905,1744195847052,-1415.66068331,0.00038356,15]
[357577906,1744195847062,-1415.66068331,0.00038356,15]
[357577907,1744195847072,-1415.66068331,0.00038356,15]
[357577908,1744195847083,-1415.66068331,0.00038356,15]
[357577909,1744195847093,-1415.66068331,0.00038356,15]
[357577910,1744195847103,-1415.66068331,0.00038356,15]
[357577911,1744195847113,-1415.66068331,0.00038356,15]
[357577912,1744195847124,-1415.66068331,0.00038356,15]
[357577913,1744195847134,-1415.66068331,0.00038356,15]
[357577914,1744195847144,-1415.66068331,0.00038356,15]
[357577915,1744195847154,-1415.66068331,0.00038356,15]
[357577916,1744195847163,-2872.87038232,0.00038356,15]
[357577917,1744195847173,-2872.87038232,0.00038356,15]
[357577918,1744195847182,-2872.87038232,0.00038356,15]
[357577919,1744195847192,-2872.87038232,0.00038356,15]
[357577920,1744195847202,-2872.87038232,0.00038356,15]
[357577921,1744195847211,-2872.87038232,0.00038356,15]
[357577922,1744195847221,-207.06,0.00038443,2]
[357577923,1744195847230,-500.0,0.00039,30]
[357577924,1744195847240,-154.35,0.00039087,2]
[357577925,1744195847250,-1072.12,0.00039489,2]
[357577926,1744195847259,-167.902,0.00039697,7]
[357577927,1744195847269,-263.61,0.00039726,2]
[357577928,1744195847278,-500.0,0.00039726,15]
[357577929,1744195847288,-430.61748511,0.00039726,15]
[357577930,1744195847297,-2215.4518928,0.00039769,4]
[357577931,1744195847306,-367.51592069,0.000399,13]
[357577932,1744195847316,-193.12767436,0.000399,2]
[357577933,1744195847325,-150.0,0.00039999,2]
[357577934,1744195847335,-150.0,0.00039999,2]
[357577935,1744195847345,-150.0,0.00039999,2]
[357577936,1744195847354,-150.0,0.00039999,2]
[357577937,1744195847364,-150.0,0.00039999,2]
[357577938,1744195847374,-150.0,0.00039999,3]
[357577939,1744195847383,-150.0,0.00039999,3]
[357577940,1744195847393,-150.0,0.00039999,3]
[357577941,1744195847403,-150.0,0.00039999,3]
[357577942,1744195847413,-150.0,0.00039999,3]
[357577943,1744195847422,-3860.0,0.0004,4]
[357577944,1744195847432,-13814.7789797,0.0004,3]
[357577945,1744195847441,-1524244.14561702,0.0004,30]
[357577948,1744195848604,-704.45,0.0004,30]
[357577949,1744195848616,-5391.18078389,0.0004,30]
[357577950,1744195850015,-1291899.22359909,0.0004,30]
[357577951,1744195850025,-500.0,0.0004,120]
[357577952,1744195850035,-728.58938707,0.0004,120]
[357577953,1744195850044,-248.77896662,0.0004,120]
[357577954,1744195850054,-501.0,0.0004,2]
[357577955,1744195850063,-271.69967592,0.0004,30]
[357577956,1744195850072,-610.40987576,0.0004,120]
[357577957,1744195850082,-160.0,0.0004,120]
[357577958,1744195850092,-160.2614075,0.0004,120]
[357577959,1744195850102,-151.0,0.0004,14]
[357577960,1744195850112,-151.0,0.0004,14]
[357577961,1744195850122,-155.98517,0.0004,14]
[357577962,1744195850131,-151.0,0.0004,14]
[357577963,1744195850140,-151.0,0.0004,14]
[357577964,1744195850149,-151.0,0.0004,14]
[357577965,1744195850159,-151.0,0.0004,14]
[357577966,1744195850168,-151.0,0.0004,14]
[357577967,1744195850178,-151.0,0.0004,14]
[357577968,1744195850187,-151.0,0.0004,14]
[357577969,1744195850201,-258.0384,0.0004,14]
[357577970,1744195850211,-5952.12,0.0004,6]
[357577971,1744195850221,-151.0,0.0004,14]
[357577972,1744195850231,-195.43944,0.0004,14]
[357577973,1744195850240,-195.43944,0.0004,14]
[357577974,1744195850249,-151.0,0.0004,14]
[357577975,1744195850261,-151.0,0.0004,14]
[357577976,1744195850270,-154.831784,0.0004,14]
[357577977,1744195850279,-151.0,0.0004,14]
[357577978,1744195850289,-151.0,0.0004,14]
[357577979,1744195850298,-151.0,0.0004,14]
[357577980,1744195850308,-189.713557,0.0004,14]
[357577981,1744195850317,-212.457849,0.0004,14]
[357577982,1744195850327,-189.713557,0.0004,14]
[357577983,1744195850336,-151.0,0.0004,14]
[357577984,1744195850346,-151.0,0.0004,14]
[357577985,1744195850355,-151.0,0.0004,14]
[357577986,1744195850365,-155.056702,0.0004,14]
[357577987,1744195850374,-155.056702,0.0004,14]
[357577988,1744195850384,-254.666663,0.0004,14]
[357577989,1744195850393,-303.574274,0.0004,14]
[357577990,1744195850403,-254.666663,0.0004,14]
[357577991,1744195850414,-303.574274,0.0004,14]
[357577992,1744195850423,-4026.909709,0.0004,14]
[357577993,1744195850432,-4026.909709,0.0004,14]
[357577994,1744195850442,-151.0,0.0004,14]
[357577995,1744195850451,-423.772439,0.0004,14]
[357577996,1744195850461,-151.0,0.0004,14]
[357577997,1744195850470,-423.772439,0.0004,14]
[357577998,1744195850479,-169.387068,0.0004,14]
[357577999,1744195850489,-209.240526,0.0004,14]
[357578000,1744195850499,-209.240526,0.0004,14]
[357578001,1744195850509,-151.0,0.0004,14]
[357578002,1744195850518,-1761.65,0.00040149,120]
[357578003,1744195850527,-348.14,0.00040424,2]
[357578004,1744195850541,-500.0,0.000409,10]
[357578005,1744195850550,-300.0,0.000409,14]
[357578006,1744195850560,-33189.63745873,0.0004099,2]
[357578007,1744195850572,-8872.22884844,0.0004099,2]
[357578008,1744195850582,-150.0,0.00040999,2]
[357578009,1744195850592,-150.0,0.00040999,2]
[357578010,1744195850601,-1365.20187448,0.00040999,2]
[357578011,1744195850611,-669.32291943,0.00040999,2]
[357578012,1744195850620,-150.0,0.00040999,2]
[357578013,1744195850629,-150.0,0.00040999,2]
[357578014,1744195850639,-150.0,0.00040999,2]
[357578015,1744195850650,-150.0,0.00040999,2]
[357578016,1744195850660,-150.0,0.00040999,3]
[357578017,1744195850669,-150.0,0.00040999,3]
[357578018,1744195850679,-150.0,0.00040999,3]
[357578019,1744195850698,-1438745.81294448,0.00041,60]
[357578020,1744195850717,-1784.80833722,0.00041,30]
[357578021,1744195850728,-500.0,0.00041,30]
[357578022,1744195850740,-4939.0,0.00041,117]
[357578023,1744195850749,-151.0,0.00041,14]
[357578024,1744195850759,-151.0,0.00041,14]
[357578025,1744195850768,-151.0,0.00041,14]
[357578026,1744195850779,-151.0,0.00041,14]
[357578027,1744195850789,-151.0,0.00041,14]
[357578028,1744195850799,-151.0,0.00041,14]
[357578029,1744195850809,-151.0,0.00041,14]
[357578030,1744195850819,-151.0,0.00041,14]
[357578031,1744195850828,-151.0,0.00041,14]
[357578032,1744195850839,-195.43944,0.00041,14]
[357578033,1744195850848,-195.43944,0.00041,14]
[357578034,1744195850858,-151.0,0.00041,14]
[357578035,1744195850868,-151.0,0.00041,14]
[357578036,1744195850879,-161.332247,0.00041,14]
[357578037,1744195850888,-189.713557,0.00041,14]
[357578038,1744195850899,-189.713557,0.00041,14]
[357578039,1744195850908,-206.659496,0.00041,14]
[357578040,1744195850917,-151.0,0.00041,14]
[357578041,1744195850927,-151.0,0.00041,14]
[357578042,1744195850936,-155.056702,0.00041,14]
[357578043,1744195850946,-155.056702,0.00041,14]
[357578044,1744195850956,-254.666663,0.00041,14]
[357578045,1744195850965,-303.574274,0.00041,14]
[357578046,1744195850975,-254.666663,0.00041,14]
[357578047,1744195850985,-303.574274,0.00041,14]
[357578048,1744195850994,-4026.909709,0.00041,14]
[357578049,1744195851004,-4026.909709,0.00041,14]
[357578050,1744195851014,-152.309273,0.00041,14]
[357578051,1744195851024,-423.772439,0.00041,14]
[357578052,1744195851033,-151.0,0.00041,14]
[357578053,1744195851043,-423.772439,0.00041,14]
[357578054,1744195851052,-209.240526,0.00041,14]
[357578055,1744195851061,-209.240526,0.00041,14]
[357578056,1744195851071,-151.0,0.00041,14]
[357578057,1744195851080,-150.5,0.0004107,120]
[357578058,1744195851089,-150.5,0.0004107,120]
[357578059,1744195851099,-150.5,0.0004108,120]
[357578060,1744195851109,-150.5,0.0004108,120]
[357578061,1744195851118,-150.5,0.0004109,120]
[357578062,1744195851128,-150.5,0.0004109,120]
[357578063,1744195851138,-263.61,0.00041095,120]
[357578064,1744195851148,-460.86610415,0.00041095,120]
[357578065,1744195851157,-150.0,0.00041096,2]
[357578066,1744195851167,-552.0,0.00041096,30]
[357578067,1744195851176,-2000.0,0.00041096,2]
[357578068,1744195851186,-152.0,0.00041608,3]
[357578069,1744195851195,-230.918,0.00041678,62]
[357578070,1744195851204,-3980.51,0.00041678,62]
[357578071,1744195851214,-5952.12,0.000417,10]
[357578072,1744195851223,-1072.12,0.00041752,2]
[357578073,1744195851233,-248.26405605,0.000419,5]
[357578074,1744195851242,-1688.0063375,0.000419,2]
[357578075,1744195851252,-467.7261884,0.000419,2]
[357578076,1744195851262,-8497.45552664,0.000419,2]
[357578077,1744195851272,-248.75384872,0.000419,2]
[357578078,1744195851281,-175.05537358,0.000419,2]
[357578079,1744195851291,-150.5,0.00041969,120]
[357578080,1744195851300,-150.5,0.00041979,120]
[357578081,1744195851315,-150.5,0.00041989,120]
[357578082,1744195851337,-287.760992,0.00041998,14]
[357578083,1744195851354,-150.0,0.00041999,2]
[357578084,1744195851363,-150.0,0.00041999,2]
[357578085,1744195851373,-150.0,0.00041999,2]
[357578086,1744195851383,-150.0,0.00041999,2]
[357578087,1744195851393,-150.0,0.00041999,3]
[357578088,1744195851403,-150.0,0.00041999,3]
[357578089,1744195851412,-150.0,0.00041999,3]
[357578090,1744195851422,-150.0,0.00041999,3]
[357578091,1744195851432,-150.0,0.00041999,3]
[357578092,1744195851441,-3001581.19186741,0.00042,3]
[357578093,1744195851451,-487.16899826,0.00042,120]
[357578094,1744195851461,-37851.50308664,0.00042,4]
[357578095,1744195851470,-151.0,0.00042,14]
[357578096,1744195851480,-151.0,0.00042,14]
[357578097,1744195851490,-151.0,0.00042,14]
[357578098,1744195851499,-151.0,0.00042,14]
[357578099,1744195851510,-3166.77,0.00042,120]
[357578100,1744195851520,-1588.33,0.00042,120]
[357578101,1744195851529,-151.0,0.00042,14]
[357578102,1744195851539,-151.0,0.00042,14]
[357578103,1744195851549,-151.0,0.00042,14]
[357578104,1744195851559,-257.25,0.00042,120]
[357578105,1744195851571,-500.0,0.00042,120]
[357578106,1744195851581,-195.43944,0.00042,14]
[357578107,1744195851590,-674.0,0.00042,120]
[357578108,1744195851599,-195.43944,0.00042,14]
[357578109,1744195851610,-288.92036,0.00042,14]
[357578110,1744195851620,-500.0,0.00042,120]
[357578111,1744195851629,-500.0,0.00042,120]
[357578112,1744195851639,-500.0,0.00042,120]
[357578113,1744195851649,-500.0,0.00042,120]
[357578114,1744195851658,-500.0,0.00042,120]
[357578115,1744195851668,-500.0,0.00042,120]
[357578116,1744195851677,-500.0,0.00042,120]
[357578117,1744195851686,-500.0,0.00042,120]
[357578118,1744195851696,-500.0,0.00042,120]
[357578119,1744195851705,-500.0,0.00042,120]
[357578120,1744195851715,-500.0,0.00042,120]
[357578121,1744195851724,-500.0,0.00042,120]
[357578122,1744195851733,-500.0,0.00042,120]
[357578123,1744195851744,-500.0,0.00042,120]
[357578124,1744195851753,-500.0,0.00042,120]
[357578125,1744195851764,-500.0,0.00042,120]
[357578126,1744195851835,-500.0,0.00042,120]
[357578127,1744195851844,-500.0,0.00042,120]
[357578128,1744195851853,-500.0,0.00042,120]
[357578129,1744195851863,-500.0,0.00042,120]
[357578130,1744195851872,-500.0,0.00042,120]
[357578131,1744195851881,-500.0,0.00042,120]
[357578132,1744195851890,-500.0,0.00042,120]
[357578133,1744195851899,-500.0,0.00042,120]
[357578134,1744195851908,-500.0,0.00042,120]
[357578135,1744195851918,-500.0,0.00042,120]
[357578136,1744195851927,-500.0,0.00042,120]
[357578137,1744195851936,-500.0,0.00042,120]
[357578138,1744195851945,-500.0,0.00042,120]
[357578139,1744195851955,-500.0,0.00042,120]
[357578140,1744195851964,-500.0,0.00042,120]
[357578141,1744195851973,-990.0,0.00042,120]
[357578142,1744195851984,-151.0,0.00042,14]
[357578143,1744195851994,-189.713557,0.00042,14]
[357578144,1744195852005,-189.713557,0.00042,14]
[357578145,1744195852019,-151.0,0.00042,14]
[357578146,1744195852029,-155.056702,0.00042,14]
[357578147,1744195852038,-155.056702,0.00042,14]
[357578148,1744195852047,-254.666663,0.00042,14]
[357578149,1744195852057,-303.574274,0.00042,14]
[357578150,1744195852066,-254.666663,0.00042,14]
[357578151,1744195852076,-303.574274,0.00042,14]
[357578152,1744195852085,-4026.909709,0.00042,14]
[357578153,1744195852095,-4026.909709,0.00042,14]
[357578154,1744195852104,-423.772439,0.00042,14]
[357578155,1744195852114,-151.0,0.00042,14]
[357578156,1744195852123,-423.772439,0.00042,14]
[357578157,1744195852133,-209.240526,0.00042,14]
[357578158,1744195852142,-209.240526,0.00042,14]
[357578159,1744195852152,-151.0,0.00042,14]
[357578160,1744195852161,-150.0,0.00042177,2]
[357578161,1744195852171,-152.0,0.00042329,4]
[357578162,1744195852180,-230.637,0.00042403,7]
[357578163,1744195852190,-150.0,0.00042419,2]
[357578164,1744195852199,-150.0,0.00042419,2]
[357578165,1744195852208,-150.0,0.00042419,2]
[357578166,1744195852218,-150.0,0.00042419,2]
[357578167,1744195852227,-150.0,0.00042419,3]
[357578168,1744195852237,-286878.40261905,0.0004242,45]
[357578169,1744195852246,-1784.80833722,0.0004242,30]
[357578170,1744195852255,-151.0,0.0004242,14]
[357578171,1744195852268,-151.0,0.0004242,14]
[357578172,1744195852277,-151.0,0.0004242,14]
[357578173,1744195852286,-151.0,0.0004242,14]
[357578174,1744195852296,-151.0,0.0004242,14]
[357578175,1744195852306,-195.43944,0.0004242,14]
[357578176,1744195852316,-195.43944,0.0004242,14]
[357578177,1744195852326,-2000.0,0.0004242,120]
[357578178,1744195852336,-2000.0,0.0004242,120]
[357578179,1744195852344,-1077.000857,0.0004242,120]
[357578180,1744195852353,-151.0,0.0004242,14]
[357578181,1744195852363,-189.713557,0.0004242,14]
[357578182,1744195852372,-189.713557,0.0004242,14]
[357578183,1744195852381,-163.520382,0.0004242,14]
[357578184,1744195852392,-155.056702,0.0004242,14]
[357578185,1744195852401,-155.056702,0.0004242,14]
[357578186,1744195852411,-254.666663,0.0004242,14]
[357578187,1744195852420,-303.574274,0.0004242,14]
[357578188,1744195852430,-254.666663,0.0004242,14]
[357578189,1744195852440,-303.574274,0.0004242,14]
[357578190,1744195852449,-4026.909709,0.0004242,14]
[357578191,1744195852459,-4026.909709,0.0004242,14]
[357578192,1744195852468,-423.772439,0.0004242,14]
[357578193,1744195852477,-151.0,0.0004242,14]
[357578194,1744195852487,-423.772439,0.0004242,14]
[357578195,1744195852496,-209.240526,0.0004242,14]
[357578196,1744195852505,-209.240526,0.0004242,14]
[357578197,1744195852517,-151.0,0.0004242,14]
[357578198,1744195852527,-263.61,0.00042465,120]
[357578199,1744195852536,-5284.05,0.000425,120]
[357578200,1744195852546,-150.0,0.000425,120]
[357578201,1744195852556,-1663.66136659,0.000425,15]
[357578202,1744195852569,-150.0,0.00042667,2]
[357578203,1744195852578,-151.0,0.00042771,14]
[357578204,1744195852588,-151.0,0.00042771,14]
[357578205,1744195852598,-239.312353,0.00042771,14]
[357578206,1744195852608,-151.0,0.00042771,14]
[357578207,1744195852618,-150.0,0.00042952,14]
[357578208,1744195852627,-150.0,0.00042999,2]
[357578209,1744195852636,-150.0,0.00042999,2]
[357578210,1744195852645,-150.0,0.00042999,2]
[357578211,1744195852654,-10000.0,0.00043,30]
[357578212,1744195852664,-72226.27173898,0.00043,30]
[357578213,1744195852673,-175.0,0.00043,31]
[357578214,1744195852683,-1000.0,0.00043,30]
[357578215,1744195852692,-20042.0,0.00043,2]
[357578216,1744195852701,-1457.17877414,0.00043,120]
[357578217,1744195852710,-497.55793324,0.00043,120]
[357578218,1744195852719,-150.0,0.00043032,2]
[357578219,1744195852728,-152.0,0.00043051,5]
[357578220,1744195852737,-1000.0,0.000431,30]
[357578221,1744195852746,-2019.63934611,0.00043131,2]
[357578222,1744195852755,-500.0,0.00043135,7]
[357578223,1744195852765,-500.0,0.00043135,7]
[357578224,1744195852775,-500.0,0.00043135,7]
[357578225,1744195852784,-289.16,0.00043135,7]
[357578226,1744195852793,-156.48412056,0.00043198,2]
[357578227,1744195852803,-1000.0,0.000432,30]
[357578228,1744195852813,-2114.12035331,0.00043206,15]
[357578229,1744195852822,-150.0,0.00043259,2]
[357578230,1744195852831,-150.0,0.00043363,2]
[357578231,1744195852840,-2012.36213431,0.0004347,30]
[357578232,1744195852849,-150.0,0.0004347,14]
[357578233,1744195852857,-1000.0,0.000435,30]
[357578234,1744195852866,-2000.0,0.000435,60]
[357578235,1744195852875,-835.49,0.000435,33]
[357578236,1744195852884,-835.49,0.000435,33]
[357578237,1744195852893,-835.49,0.000435,33]
[357578238,1744195852902,-835.49,0.000435,33]
[357578239,1744195852911,-835.49,0.000435,33]
[357578240,1744195852920,-835.49,0.000435,33]
[357578241,1744195852929,-835.49,0.000435,33]
[357578242,1744195852938,-835.49,0.000435,33]
[357578243,1744195852947,-835.49,0.000435,33]
[357578244,1744195852957,-835.49,0.000435,33]
[357578245,1744195852966,-835.49,0.000435,33]
[357578246,1744195852977,-835.49,0.000435,33]
[357578247,1744195852987,-409.69,0.000435,33]
[357578248,1744195852996,-409.69,0.000435,33]
[357578249,1744195853005,-409.69,0.000435,33]
[357578250,1744195853015,-409.69,0.000435,33]
[357578251,1744195853024,-409.69,0.000435,33]
[357578252,1744195853033,-409.69,0.000435,33]
[357578253,1744195853042,-409.69,0.000435,33]
[357578254,1744195853051,-409.69,0.000435,33]
[357578255,1744195853061,-409.69,0.000435,33]
[357578256,1744195853070,-409.69,0.000435,33]
[357578257,1744195853079,-409.69,0.000435,33]
[357578258,1744195853088,-409.69,0.000435,33]
[357578259,1744195853097,-7673.6690946,0.00043504,3]
[357578260,1744195853106,-150.0,0.00043513,2]
[357578261,1744195853115,-1000.0,0.00043523,14]
[357578262,1744195853124,-500.0,0.000436,30]
[357578263,1744195853133,-150.0,0.00043638,14]
[357578264,1744195853143,-3542.66779764,0.00043648,2]
[357578265,1744195853152,-150.0,0.00043665,2]
[357578266,1744195853162,-2112.97385477,0.0004367,5]
[357578267,1744195853171,-1000.0,0.000437,30]
[357578268,1744195853180,-156.56935632,0.00043745,14]
[357578269,1744195853189,-152.0,0.00043772,6]
[357578270,1744195853198,-163.0,0.0004378,120]
[357578271,1744195853207,-150.5,0.0004379,120]
[357578272,1744195853216,-150.0,0.00043814,14]
[357578273,1744195853225,-263.61,0.00043835,120]
[357578274,1744195853234,-175.27804183,0.00043836,2]
[357578275,1744195853244,-2000.0,0.00043836,2]
[357578276,1744195853253,-589.96318449,0.00043836,5]
[357578277,1744195853263,-500.0,0.00043836,120]
[357578278,1744195853272,-500.0,0.00043836,120]
[357578279,1744195853282,-500.0,0.00043836,120]
[357578280,1744195853291,-500.0,0.00043836,120]
[357578281,1744195853300,-500.0,0.00043836,120]
[357578282,1744195853309,-500.0,0.00043836,120]
[357578283,1744195853318,-500.0,0.00043836,120]
[357578284,1744195853328,-500.0,0.00043836,120]
[357578285,1744195853336,-500.0,0.00043836,120]
[357578286,1744195853346,-500.0,0.00043836,120]
[357578287,1744195853355,-500.0,0.00043836,120]
[357578288,1744195853365,-500.0,0.00043836,120]
[357578289,1744195853374,-500.0,0.00043836,120]
[357578290,1744195853383,-500.0,0.00043836,120]
[357578291,1744195853392,-500.0,0.00043836,120]
[357578292,1744195853401,-500.0,0.00043836,120]
[357578293,1744195853410,-500.0,0.00043836,120]
[357578294,1744195853419,-500.0,0.00043836,120]
[357578295,1744195853428,-500.0,0.00043836,120]
[357578296,1744195853438,-500.0,0.00043836,120]
[357578297,1744195853447,-500.0,0.00043836,120]
[357578298,1744195853457,-500.0,0.00043836,120]
[357578299,1744195853467,-500.0,0.00043836,120]
[357578300,1744195853476,-500.0,0.00043836,120]
[357578301,1744195853486,-500.0,0.00043836,120]
[357578302,1744195853495,-500.0,0.00043836,120]
[357578303,1744195853504,-500.0,0.00043836,120]
[357578304,1744195853515,-500.0,0.00043836,120]
[357578305,1744195853524,-500.0,0.00043836,120]
[357578306,1744195853534,-500.0,0.00043836,120]
[357578307,1744195853543,-500.0,0.00043836,120]
[357578308,1744195853552,-500.0,0.00043836,120]
[357578309,1744195853563,-500.0,0.00043836,120]
[357578310,1744195853573,-500.0,0.00043836,120]
[357578311,1744195853582,-500.0,0.00043836,120]
[357578312,1744195853592,-500.0,0.00043836,120]
[357578313,1744195853603,-500.0,0.00043836,120]
[357578314,1744195853612,-500.0,0.00043836,120]
[357578315,1744195853621,-500.0,0.00043836,120]
[357578316,1744195853631,-500.0,0.00043836,120]
[357578317,1744195853643,-500.0,0.00043836,120]
[357578318,1744195853653,-500.0,0.00043836,120]
[357578319,1744195853662,-500.0,0.00043836,120]
[357578320,1744195853672,-500.0,0.00043836,120]
[357578321,1744195853680,-500.0,0.00043836,120]
[357578322,1744195853690,-201.55498987,0.00043836,120]
[357578323,1744195853699,-500.0,0.00043836,120]
[357578324,1744195853708,-500.0,0.00043836,120]
[357578325,1744195853718,-500.0,0.00043836,120]
[357578326,1744195853728,-500.0,0.00043836,120]
[357578327,1744195853737,-500.0,0.00043836,120]
[357578328,1744195853747,-500.0,0.00043836,120]
[357578329,1744195853756,-500.0,0.00043836,120]
[357578330,1744195853767,-500.0,0.00043836,120]
[357578331,1744195853776,-1000.0,0.00043849,14]
[357578332,1744195853785,-150.0,0.0004385,2]
[357578333,1744195853794,-1066.55111,0.00043888,30]
[357578334,1744195853803,-3595.62621879,0.000439,120]
[357578335,1744195853812,-1000.0,0.00043943,14]
[357578336,1744195853822,-1000.0,0.0004398,14]
[357578337,1744195853832,-195.43944,0.0004398,14]
[357578338,1744195853842,-195.439433,0.0004398,14]
[357578339,1744195853852,-210.0,0.00044,30]
[357578340,1744195853862,-233688.08625859,0.00044,2]
[357578341,1744195853872,-155.5,0.00044,30]
[357578342,1744195853882,-252.0,0.00044,90]
[357578343,1744195853892,-171.72,0.00044,45]
[357578344,1744195853901,-658.61931173,0.00044006,14]
[357578345,1744195853910,-1072.12,0.00044016,2]
[357578346,1744195853920,-151.0,0.00044017,14]
[357578347,1744195853930,-189.713557,0.00044017,14]